fUST/lending_fUST_20260126
["ID","MTS","AMOUNT","RATE_DAILY","PERIOD"]
[403633688,1769435372166,-1565.2018575,9.523e-05,2]
[403633689,1769435372188,-21.61964433,9.899e-05,2]
[403633803,1769435437930,-300.0,9.899e-05,2]
[403633804,1769435437939,-300.0,9.899e-05,2]
[403633805,1769435437950,-161.0,9.899e-05,2]
[403633806,1769435437959,-559.0,9.899e-05,2]
[403633807,1769435437969,-1200.0,9.899e-05,2]
[403633808,1769435437979,-500.0,9.899e-05,2]
[403633809,1769435437989,-200.09859575,9.899e-05,2]
[403633810,1769435437999,-500.0,9.899e-05,2]
[403633811,1769435438009,-500.0,9.899e-05,2]
[403633812,1769435438021,-500.0,9.899e-05,2]
[403633813,1769435438031,-500.0,9.899e-05,2]
[403633814,1769435438040,-500.0,9.899e-05,2]
[403633815,1769435438050,-500.0,9.899e-05,2]
[403633816,1769435438060,-500.0,9.899e-05,2]
[403633817,1769435438069,-500.0,9.899e-05,2]
[403633818,1769435438079,-500.0,9.899e-05,2]
[403633819,1769435438088,-500.0,9.899e-05,2]
[403633820,1769435438098,-500.0,9.899e-05,2]
[403633821,1769435438108,-500.0,9.899e-05,2]
[403633822,1769435438117,-203.91429825,9.899e-05,2]
[403633823,1769435438127,-500.0,9.899e-05,2]
[403633824,1769435438137,-500.0,9.899e-05,2]
[403633825,1769435438147,-500.0,9.899e-05,2]
[403633826,1769435438157,-500.0,9.899e-05,2]
[403633827,1769435438167,-2315.07593171,9.9e-05,2]
[403633828,1769435438179,-997684.92406829,9.9e-05,2]
[403633829,1769435438189,-300.0,9.998e-05,2]
[403633830,1769435438199,-22088.95771145,9.999e-05,2]
[403633831,1769435438209,-628573.0,0.0001,2]
[403633832,1769435438219,-4360.83695238,0.0001,2]
[403633833,1769435438228,-300.0,0.0001,2]
[403633834,1769435438238,-262.56268206,0.000101,2]
[403633835,1769435438247,-300.0,0.00010199,2]
[403633836,1769435438258,-300.0,0.00010199,2]
[403633837,1769435438269,-300.0,0.00010199,2]
[403633838,1769435438279,-300.0,0.00010199,2]
[403633839,1769435438289,-300.0,0.00010199,2]
[403633840,1769435438299,-300.0,0.00010199,2]
[403633841,1769435438308,-300.0,0.00010199,2]
[403633842,1769435438318,-300.0,0.00010199,2]
[403633843,1769435438328,-300.0,0.00010199,2]
[403633844,1769435438338,-300.0,0.00010199,2]
[403633845,1769435438348,-300.0,0.00010199,2]
[403633846,1769435438358,-300.0,0.00010199,2]
[403633847,1769435438368,-300.0,0.00010199,2]
[403633848,1769435438378,-300.0,0.00010199,2]
[403633849,1769435438388,-300.0,0.00010199,2]
[403633850,1769435438398,-600.0,0.00010199,2]
[403633851,1769435438408,-293.44993338,0.00010373,2]
[403633852,1769435438418,-79819.9323221,0.00010648,2]
[403633853,1769435438428,-420.0,0.00010889,2]
[403633854,1769435438438,-420.0,0.00010889,2]
[403633855,1769435438449,-1680.0,0.00010889,2]
[403633856,1769435438459,-397.0,0.00010998,2]
[403633857,1769435438470,-720.0,0.00011219,2]
[403633858,1769435438480,-417.21,0.000114,2]
[403633859,1769435438489,-3774.0,0.00011416,5]
[403633860,1769435438499,-207.87778273,0.00011417,2]
[403633861,1769435438508,-150.0,0.0001162,2]
[403633862,1769435438517,-500.0,0.0001162,2]
[403633863,1769435438527,-150.0,0.0001162,2]
[403633864,1769435438537,-500.0,0.0001162,2]
[403633865,1769435438546,-500.0,0.00011624,2]
[403633866,1769435438556,-500.0,0.00011624,2]
[403633867,1769435438565,-500.0,0.00011624,2]
[403633868,1769435438575,-500.0,0.00011624,2]
[403633869,1769435438584,-205.66336086,0.00011757,2]
[403633870,1769435438602,-500.0,0.00011757,2]
[403633871,1769435438613,-167.91373532,0.00011757,2]
[403633872,1769435438623,-500.0,0.00011757,2]
[403633873,1769435438632,-500.0,0.00011761,2]
[403633874,1769435438642,-500.0,0.00011761,2]
[403633875,1769435438651,-500.0,0.00011761,2]
[403633876,1769435438661,-500.0,0.00011761,2]
[403633877,1769435438671,-379.11,0.000118,2]
[403633878,1769435438681,-500.0,0.00011894,2]
[403633879,1769435438691,-500.0,0.00011894,2]
[403633880,1769435438701,-471.929,0.00011895,2]
[403633881,1769435438711,-178.83560877,0.00011895,2]
[403633882,1769435438721,-203.37170978,0.00011898,2]
[403633883,1769435438731,-500.0,0.00011898,2]
[403633884,1769435438740,-500.0,0.00011898,2]
[403633885,1769435438750,-500.0,0.00011898,2]
[403633886,1769435438760,-500.0,0.00011898,2]
[403633887,1769435438770,-150.0,0.00011898,2]
[403633888,1769435438779,-500.0,0.00011898,2]
[403633889,1769435438789,-500.0,0.00011898,2]
[403633890,1769435438798,-500.0,0.00011898,2]
[403633891,1769435438807,-500.0,0.00011898,2]
[403633892,1769435438817,-500.0,0.00011898,2]
[403633893,1769435438826,-150.0,0.00011898,2]
[403633894,1769435438836,-9660.27372543,0.00011935,2]
[403633895,1769435438845,-2351.0,0.00011978,2]
[403633896,1769435438855,-500.0,0.00012031,2]
[403633897,1769435438864,-500.0,0.00012031,2]
[403633898,1769435438874,-450.66953665,0.00012035,2]
[403633899,1769435438884,-500.0,0.00012035,2]
[403633900,1769435438893,-500.0,0.00012035,2]
[403633901,1769435438903,-500.0,0.00012035,2]
[403633902,1769435438913,-150.0,0.00012035,2]
[403633903,1769435438922,-500.0,0.00012035,2]
[403633904,1769435438932,-500.0,0.00012035,2]
[403633905,1769435438942,-500.0,0.00012035,2]
[403633906,1769435438952,-500.0,0.00012035,2]
[403633907,1769435438961,-500.0,0.00012035,2]
[403633908,1769435438971,-150.0,0.00012035,2]
[403633909,1769435438981,-309.82396483,0.000121,2]
[403633910,1769435438991,-500.0,0.00012168,2]
[403633911,1769435439001,-500.0,0.00012168,2]
[403633912,1769435439011,-500.0,0.00012172,2]
[403633913,1769435439025,-500.0,0.00012172,2]
[403633914,1769435439034,-582.25572152,0.00012172,2]
[403633915,1769435439044,-200.98832221,0.00012172,2]
[403633916,1769435439054,-500.0,0.00012172,2]
[403633917,1769435439063,-500.0,0.00012172,2]
[403633918,1769435439073,-264.59981825,0.00012172,2]
[403633919,1769435439083,-500.0,0.00012172,2]
[403633920,1769435439092,-500.0,0.00012172,2]
[403633921,1769435439102,-150.0,0.00012172,2]
[403633922,1769435439111,-1921.34691782,0.00012258,2]
[403633923,1769435439120,-500.0,0.00012305,2]
[403633924,1769435439130,-500.0,0.00012305,2]
[403633925,1769435439141,-220.18654939,0.00012309,2]
[403633926,1769435439151,-150.0,0.00012309,2]
[403633927,1769435439161,-500.0,0.00012309,2]
[403633928,1769435439171,-500.0,0.00012309,2]
[403633929,1769435439181,-450.0,0.00012309,2]
[403633930,1769435439191,-500.0,0.00012309,2]
[403633931,1769435439200,-150.0,0.00012309,2]
[403633932,1769435439210,-864.0,0.00012341,2]
[403633933,1769435439219,-543.52,0.000124,2]
[403633934,1769435439229,-500.0,0.00012442,2]
[403633935,1769435439239,-500.0,0.00012442,2]
[403633936,1769435439249,-500.0,0.00012446,2]
[403633937,1769435439258,-502.62334924,0.00012446,2]
[403633938,1769435439268,-500.0,0.00012446,2]
[403633939,1769435439278,-150.0,0.00012446,2]
[403633940,1769435439287,-500.0,0.00012579,2]
[403633941,1769435439296,-500.0,0.00012579,2]
[403633942,1769435439306,-150.95054583,0.00012583,2]
[403633943,1769435439316,-500.0,0.00012583,2]
[403633944,1769435439325,-222.35139926,0.00012583,2]
[403633945,1769435439335,-500.0,0.00012716,2]
[403633946,1769435439345,-500.0,0.00012716,2]
[403633948,1769435439563,-500.0,0.00012853,2]
[403633949,1769435439572,-2081.67592948,0.000129,2]
[403633950,1769435439582,-500.0,0.0001299,2]
[403633951,1769435439591,-500.0,0.00013127,2]
[403633952,1769435439600,-500.0,0.00013264,2]
[403633953,1769435439609,-502.99035624,0.00013273,2]
[403633954,1769435439619,-162.48916646,0.00013273,2]
[403633955,1769435439629,-500.0,0.00013273,2]
[403633956,1769435439638,-500.0,0.00013273,2]
[403633957,1769435439647,-386.99327385,0.00013273,2]
[403633958,1769435439657,-500.0,0.00013273,2]
[403633960,1769435439666,-500.0,0.00013273,2]
[403633962,1769435439675,-503.5144957,0.00013273,2]
[403633963,1769435439684,-500.0,0.00013273,2]
[403633965,1769435439694,-504.66008898,0.00013273,2]
[403633966,1769435439704,-501.2459449,0.00013273,2]
[403633967,1769435439713,-500.0,0.00013273,2]
[403633968,1769435439723,-500.0,0.00013273,2]
[403633969,1769435439733,-500.92401321,0.00013273,2]
[403633971,1769435439742,-500.0,0.00013273,2]
[403633973,1769435439750,-501.2138829,0.00013273,2]
[403633974,1769435439760,-502.4998524,0.00013273,2]
[403633976,1769435439769,-500.0,0.00013273,2]
[403633978,1769435439779,-2081.67592945,0.00013384,2]
[403633980,1769435439788,-465.41821725,0.00013401,2]
[403633982,1769435439797,-1000.0,0.00013575,2]
[403633984,1769435439806,-300.0,0.00013673,2]
[403633986,1769435439815,-626.122152,0.00013698,2]
[403633988,1769435439824,-154.20486829,0.00013698,2]
[403633990,1769435439833,-1000.0,0.00013699,2]
[403633992,1769435439842,-228.02056982,0.00013699,2]
[403633994,1769435439850,-300.01916849,0.00013699,2]
[403633996,1769435439859,-158.2,0.00013699,2]
[403633998,1769435439868,-500.0,0.00013699,2]
[403634000,1769435439877,-2000.0,0.00013699,7]
[403634002,1769435439886,-500.0,0.00013699,2]
[403634004,1769435439895,-171.30774651,0.00013699,2]
[403634006,1769435439904,-471.28,0.00013721,2]
[403634008,1769435439913,-1000.0,0.00013821,2]
[403634010,1769435439922,-1000.0,0.00013821,2]
[403634012,1769435439931,-1000.0,0.00013821,2]
[403634014,1769435439940,-1000.0,0.00013821,2]
[403634016,1769435439949,-1000.0,0.00013821,2]
[403634018,1769435439958,-100000.0,0.0001399,2]
[403634020,1769435439967,-357.0852476,0.000141,2]
[403634022,1769435439977,-1099.69,0.00014147,2]
[403634024,1769435439986,-600.0,0.00014221,2]
[403634026,1769435439995,-1000.0,0.00014247,2]
[403634027,1769435440004,-1000.0,0.00014247,2]
[403634029,1769435440017,-1041.66666667,0.00014295,2]
[403634031,1769435440026,-1500.0,0.00014368,2]
[403634033,1769435440035,-943.77363094,0.00014368,2]
[403634035,1769435440044,-1500.0,0.00014368,2]
[403634037,1769435440054,-1500.0,0.00014368,2]
[403634039,1769435440063,-1500.0,0.00014368,2]
[403634041,1769435440072,-9660.27372534,0.00014472,2]
[403634043,1769435440081,-2000.0,0.00014749,7]
[403634045,1769435440093,-900.0,0.00014768,2]
[403634047,1769435440101,-1461.62464944,0.00014795,2]
[403634049,1769435440111,-1500.0,0.00014795,2]
[403634051,1769435440119,-2000.0,0.00014916,2]
[403634053,1769435440129,-2000.0,0.00014916,2]
[403634055,1769435440138,-2000.0,0.00014916,2]
[403634057,1769435440147,-2000.0,0.00014916,2]
[403634059,1769435440156,-1000.0,0.00014932,2]
[403634061,1769435440164,-244.0,0.00014932,2]
[403634062,1769435440173,-1293.63223956,0.00015316,2]
[403634064,1769435440183,-2000.0,0.00015342,2]
[403634067,1769435440192,-2500.0,0.00015464,2]
[403634068,1769435440201,-2500.0,0.00015464,2]
[403634070,1769435440210,-2500.0,0.00015464,2]
[403634072,1769435440220,-2500.0,0.00015464,2]
[403634074,1769435440229,-1000.0,0.000155,2]
[403634076,1769435440239,-246.0,0.00015507,3]
[403634078,1769435440248,-179.9460162,0.00015516,2]
[403634081,1769435440258,-5000.0,0.0001564,2]
[403634082,1769435440267,-2000.0,0.00015799,7]
[403634084,1769435440276,-2500.0,0.0001589,2]
[403634086,1769435440285,-1000.0,0.00016,2]
[403634088,1769435440294,-1355.419529,0.00016012,2]
[403634090,1769435440303,-3000.0,0.00016012,2]
[403634092,1769435440313,-3000.0,0.00016012,2]
[403634094,1769435440322,-3000.0,0.00016012,2]
[403634096,1769435440331,-2150.0,0.00016029,2]
[403634098,1769435440341,-629.0,0.00016029,2]
[403634100,1769435440350,-418.0,0.00016029,2]
[403634102,1769435440359,-179.001,0.00016029,2]
[403634104,1769435440369,-404.34653037,0.000161,2]
[403634106,1769435440378,-1000.0,0.00016426,2]
[403634108,1769435440387,-492.0,0.00016426,2]
[403634110,1769435440397,-250.0,0.00016438,2]
[403634112,1769435440406,-150.0,0.00016438,2]
[403634114,1769435440416,-4794.546509,0.00016438,7]
[403634116,1769435440425,-164.53752599,0.00016438,2]
[403634118,1769435440434,-3000.0,0.00016438,2]
[403634120,1769435440444,-200.0,0.00016473,2]
[403634122,1769435440453,-1000.0,0.000165,2]
[403634124,1769435440463,-497.48189141,0.0001656,2]
[403634125,1769435440472,-3500.0,0.0001656,2]
[403634127,1769435440482,-1975.94196246,0.0001656,2]
[403634129,1769435440491,-200.0,0.00016738,7]
[403634131,1769435440501,-200.0,0.00016738,7]
[403634133,1769435440511,-200.0,0.00016738,7]
[403634135,1769435440520,-1644.784836,0.00016738,7]
[403634137,1769435440529,-2000.0,0.00016849,7]
[403634139,1769435440537,-2081.67592945,0.0001687,2]
[403634141,1769435440546,-150.33747135,0.00016986,2]
[403634143,1769435440555,-3500.0,0.00016986,2]
[403634145,1769435440564,-1000.0,0.00017,2]
[403634147,1769435440573,-9660.27372534,0.00017008,2]
[403634149,1769435440583,-4000.0,0.00017108,2]
[403634151,1769435440591,-150.0,0.00017226,2]
[403634153,1769435440600,-150.0,0.00017226,2]
[403634155,1769435440609,-150.0,0.00017226,2]
[403634157,1769435440618,-201.4653447,0.00017226,2]
[403634159,1769435440627,-500.0,0.00017226,2]
[403634161,1769435440637,-150.0,0.00017226,2]
[403634163,1769435440647,-500.0,0.00017226,2]
[403634165,1769435440655,-150.0,0.00017226,2]
[403634166,1769435440664,-155.78190647,0.00017226,2]
[403634168,1769435440673,-174.55748242,0.00017226,2]
[403634170,1769435440682,-150.0,0.00017363,2]
[403634172,1769435440692,-150.0,0.00017363,2]
[403634174,1769435440701,-150.0,0.00017363,2]
[403634176,1769435440710,-500.0,0.00017363,2]
[403634178,1769435440719,-150.0,0.00017363,2]
[403634180,1769435440729,-500.0,0.00017363,2]
[403634182,1769435440738,-276.51324549,0.00017363,2]
[403634184,1769435440748,-200.77708875,0.000175,2]
[403634186,1769435440761,-150.0,0.000175,2]
[403634188,1769435440771,-153.80161828,0.000175,2]
[403634190,1769435440780,-500.0,0.000175,2]
[403634192,1769435440789,-150.0,0.000175,2]
[403634194,1769435440799,-500.0,0.000175,2]
[403634196,1769435440807,-1000.0,0.000175,2]
[403634198,1769435440817,-4000.0,0.00017534,2]
[403634200,1769435440826,-150.0,0.00017637,2]
[403634202,1769435440835,-500.0,0.00017637,2]
[403634204,1769435440844,-150.0,0.00017637,2]
[403634206,1769435440853,-223.92590858,0.00017637,2]
[403634208,1769435440862,-4500.0,0.00017656,2]
[403634210,1769435440871,-1369.870431,0.00017753,7]
[403634211,1769435440880,-300.81623099,0.00017774,2]
[403634213,1769435440891,-150.0,0.00017774,2]
[403634215,1769435440901,-1000.0,0.00017808,2]
[403634217,1769435440910,-150.0,0.00017808,2]
[403634219,1769435440919,-281.66552966,0.00017842,2]
[403634221,1769435440929,-2000.0,0.000179,7]
[403634223,1769435440938,-150.0,0.00017911,2]
[403634225,1769435440947,-200.0,0.00017999,7]
[403634227,1769435440956,-200.0,0.00017999,7]
[403634229,1769435440964,-200.0,0.00017999,7]
[403634231,1769435440973,-1238.505409,0.00017999,7]
[403634233,1769435440982,-1000.0,0.00018,2]
[403634235,1769435440993,-1000.0,0.00018068,2]
[403634237,1769435441002,-791.0,0.00018068,2]
[403634239,1769435441011,-469.938524,0.00018077,7]
[403634241,1769435441023,-4500.0,0.00018082,2]
[403634243,1769435441032,-23930.78163137,0.00018082,3]
[403634245,1769435441042,-451.60781314,0.000181,2]
[403634247,1769435441051,-501.27029717,0.00018141,5]
[403634249,1769435441060,-197.596486,0.00018185,7]
[403634251,1769435441070,-1166.9007296,0.00018219,2]
[403634253,1769435441079,-461.058468,0.00018356,7]
[403634255,1769435441088,-200.0,0.00018356,2]
[403634257,1769435441098,-1000.0,0.000185,2]
[403634259,1769435441107,-151.0,0.00018562,2]
[403634261,1769435441115,-151.0,0.00018562,2]
[403634263,1769435441125,-151.0,0.00018562,2]
[403634265,1769435441134,-151.0,0.00018562,2]
[403634267,1769435441143,-151.0,0.00018562,2]
[403634268,1769435441152,-209.40437684,0.00018562,2]
[403634270,1769435441161,-151.0,0.00018562,2]
[403634272,1769435441171,-217.15233878,0.00018562,2]
[403634274,1769435441180,-151.0,0.00018562,2]
[403634276,1769435441189,-225.18697532,0.00018562,2]
[403634278,1769435441198,-151.0,0.00018562,2]
[403634280,1769435441207,-238.51246012,0.00018562,2]
[403634282,1769435441216,-233.51889341,0.00018562,2]
[403634284,1769435441225,-2773.56790519,0.00018562,2]
[403634286,1769435441234,-242.15909246,0.00018562,2]
[403634288,1769435441243,-251.11897888,0.00018562,2]
[403634290,1769435441252,-260.4103811,0.00018562,2]
[403634292,1769435441261,-270.0455652,0.00018562,2]
[403634294,1769435441270,-280.03725112,0.00018562,2]
[403634296,1769435441279,-290.39862941,0.00018562,2]
[403634298,1769435441288,-500.0,0.00018562,2]
[403634300,1769435441298,-301.1433787,0.00018562,2]
[403634302,1769435441308,-500.0,0.00018562,2]
[403634304,1769435441317,-500.0,0.00018562,2]
[403634306,1769435441326,-500.0,0.00018562,2]
[403634308,1769435441334,-500.0,0.00018562,2]
[403634309,1769435441343,-500.0,0.00018562,2]
[403634311,1769435441353,-500.0,0.00018562,2]
[403634313,1769435441362,-500.0,0.00018562,2]
[403634315,1769435441371,-500.0,0.00018562,2]
[403634317,1769435441380,-500.0,0.00018562,2]
[403634319,1769435441389,-500.0,0.00018562,2]
[403634321,1769435441400,-289.41339882,0.00018562,2]
[403634323,1769435441408,-1957.85600001,0.00018562,2]
[403634325,1769435441418,-5000.0,0.0001863,2]
[403634327,1769435441427,-184.03,0.00018636,2]
[403634329,1769435441437,-5000.0,0.00018768,2]
[403634331,1769435441446,-184.01,0.00018835,2]
[403634333,1769435441456,-187.255119,0.0001887,7]
[403634335,1769435441465,-303.10001603,0.000189,2]
[403634337,1769435441474,-303.10001603,0.000189,2]
[403634339,1769435441483,-251.7262602,0.00018904,2]
[403634341,1769435441493,-2000.0,0.0001895,7]
[403634343,1769435441502,-300.0,0.00018958,2]
[403634345,1769435441511,-1000.0,0.00019,2]
[403634347,1769435441520,-2150.0,0.00019029,2]
[403634349,1769435441529,-418.0,0.00019029,2]
[403634350,1769435441538,-179.0,0.00019029,2]
[403634352,1769435441547,-303.10001603,0.00019089,2]
[403634354,1769435441556,-303.10001603,0.00019089,2]
[403634356,1769435441564,-38000.0,0.00019169,3]
[403634358,1769435441573,-507.9665,0.00019178,2]
[403634360,1769435441582,-200.0,0.00019178,2]
[403634362,1769435441591,-507.9665,0.00019178,2]
[403634364,1769435441600,-507.9665,0.00019178,2]
[403634366,1769435441608,-507.9665,0.00019178,2]
[403634368,1769435441617,-507.9665,0.00019178,2]
[403634370,1769435441626,-507.9665,0.00019178,2]
[403634372,1769435441636,-507.9665,0.00019178,2]
[403634374,1769435441645,-507.9665,0.00019178,2]
[403634376,1769435441653,-507.9665,0.00019178,2]
[403634378,1769435441662,-507.9665,0.00019178,2]
[403634379,1769435441671,-507.9665,0.00019178,2]
[403634381,1769435441680,-507.9665,0.00019178,2]
[403634383,1769435441689,-507.9665,0.00019178,2]
[403634385,1769435441698,-507.9665,0.00019178,2]
[403634387,1769435441707,-507.9665,0.00019178,2]
[403634389,1769435441716,-507.9665,0.00019178,2]
[403634391,1769435441725,-38000.0,0.00019178,3]
[403634393,1769435441735,-507.9665,0.00019178,2]
[403634395,1769435441744,-338.64,0.00019178,2]
[403634397,1769435441754,-507.9665,0.00019178,2]
[403634399,1769435441762,-507.96,0.00019178,2]
[403634401,1769435441772,-507.9665,0.00019178,2]
[403634403,1769435441781,-507.9665,0.00019178,2]
[403634405,1769435441790,-507.9665,0.00019178,2]
[403634407,1769435441799,-507.9665,0.00019178,2]
[403634409,1769435441808,-675.42924,0.00019178,7]
[403634411,1769435441817,-151.0,0.00019178,2]
[403634412,1769435441826,-3250.570263,0.00019178,2]
[403634414,1769435441835,-3250.570263,0.00019178,2]
[403634416,1769435441845,-3250.570263,0.00019178,2]
[403634418,1769435441854,-3250.570263,0.00019178,2]
[403634420,1769435441864,-364.193887,0.00019178,2]
[403634422,1769435441874,-364.193887,0.00019178,2]
[403634424,1769435441883,-364.193887,0.00019178,2]
[403634426,1769435441893,-651.446753,0.00019178,2]
[403634428,1769435441902,-364.193887,0.00019178,2]
[403634430,1769435441912,-651.446753,0.00019178,2]
[403634431,1769435441921,-651.446753,0.00019178,2]
[403634433,1769435441930,-651.446753,0.00019178,2]
[403634435,1769435441939,-5500.0,0.00019178,2]
[403634437,1769435441948,-303.10001603,0.00019278,2]
[403634439,1769435441957,-303.10001603,0.00019278,2]
[403634441,1769435441966,-169.0,0.00019342,3]
[403634443,1769435441976,-221.75860918,0.00019414,2]
[403634445,1769435441985,-443.0513332,0.00019421,2]
[403634447,1769435441994,-353.858688,0.00019439,7]
[403634449,1769435442004,-303.10001603,0.00019467,2]
[403634450,1769435442012,-303.10001603,0.00019467,2]
[403634453,1769435442025,-1000.0,0.000195,2]
[403634454,1769435442035,-9660.27372534,0.00019545,2]
[403634456,1769435442046,-164.34495881,0.000196,2]
[403634458,1769435442056,-303.10001603,0.00019656,2]
[403634460,1769435442065,-303.10001603,0.00019656,2]
[403634462,1769435442075,-151.0,0.000197,2]
[403634464,1769435442084,-151.0,0.000197,2]
[403634466,1769435442093,-151.0,0.000197,2]
[403634468,1769435442102,-151.0,0.000197,2]
[403634470,1769435442111,-2033.352556,0.000197,2]
[403634472,1769435442120,-2033.352556,0.000197,2]
[403634474,1769435442130,-2033.352556,0.000197,2]
[403634476,1769435442139,-2033.352556,0.000197,2]
[403634478,1769435442148,-151.0,0.000197,2]
[403634480,1769435442158,-151.0,0.000197,2]
[403634482,1769435442167,-151.0,0.000197,2]
[403634484,1769435442176,-151.0,0.000197,2]
[403634485,1769435442185,-1935.523974,0.000197,2]
[403634487,1769435442195,-1935.523974,0.000197,2]
[403634489,1769435442204,-1935.523974,0.000197,2]
[403634491,1769435442214,-1935.523974,0.000197,2]
[403634493,1769435442223,-151.0,0.000197,2]
[403634495,1769435442232,-151.0,0.000197,2]
[403634497,1769435442242,-151.0,0.000197,2]
[403634499,1769435442251,-1637.025204,0.000197,2]
[403634501,1769435442260,-1637.025204,0.000197,2]
[403634503,1769435442270,-1637.025204,0.000197,2]
[403634505,1769435442280,-1637.025204,0.000197,2]
[403634507,1769435442289,-151.0,0.000197,2]
[403634509,1769435442299,-165.360743,0.000197,2]
[403634511,1769435442308,-165.360743,0.000197,2]
[403634512,1769435442317,-467.751759,0.000197,2]
[403634515,1769435442330,-165.360743,0.000197,2]
[403634517,1769435442339,-467.751759,0.000197,2]
[403634518,1769435442348,-165.360743,0.000197,2]
[403634520,1769435442357,-467.751759,0.000197,2]
[403634522,1769435442366,-467.751759,0.000197,2]
[403634524,1769435442375,-154.182483,0.000197,2]
[403634526,1769435442384,-248.971219,0.000197,2]
[403634528,1769435442393,-154.182483,0.000197,2]
[403634530,1769435442402,-248.971219,0.000197,2]
[403634532,1769435442413,-154.182483,0.000197,2]
[403634535,1769435442422,-248.971219,0.000197,2]
[403634537,1769435442431,-154.182483,0.000197,2]
[403634539,1769435442441,-248.971219,0.000197,2]
[403634541,1769435442450,-201.954617,0.000197,2]
[403634543,1769435442460,-201.954617,0.000197,2]
[403634545,1769435442469,-201.954617,0.000197,2]
[403634547,1769435442479,-201.954617,0.000197,2]
[403634549,1769435442488,-59826.95,0.000197,3]
[403634551,1769435442497,-3561.20479703,0.00019726,2]
[403634553,1769435442506,-800.0,0.00019739,2]
[403634555,1769435442516,-168.0,0.00019744,2]
[403634556,1769435442526,-1288.709849,0.0001976,5]
[403634558,1769435442535,-1000.0,0.0001978,5]
[403634560,1769435442545,-184.03,0.00019783,2]
[403634562,1769435442555,-1000.0,0.000198,5]
[403634564,1769435442564,-1000.0,0.0001982,5]
[403634566,1769435442573,-1000.0,0.0001984,5]
[403634569,1769435442583,-454.65002405,0.00019845,4]
[403634572,1769435442592,-454.65002405,0.00019845,4]
[403634575,1769435442601,-1000.0,0.0001986,5]
[403634578,1769435442611,-1000.0,0.00019875,2]
[403634581,1769435442620,-1000.0,0.00019875,2]
[403634584,1769435442630,-1000.0,0.0001988,5]
[403634587,1769435442639,-3087.0802621,0.00019888,2]
[403634590,1769435442648,-335.0,0.00019898,2]
[403634592,1769435442660,-653.32718531,0.000199,2]
[403634594,1769435442670,-1175.98893357,0.000199,2]
[403634596,1769435442679,-2090.64699301,0.000199,2]
[403634598,1769435442688,-3266.63592657,0.000199,2]
[403634601,1769435442697,-4703.95573427,0.000199,2]
[403634604,1769435442706,-509.64998316,0.000199,2]
[403634607,1769435442715,-917.3699697,0.000199,2]
[403634610,1769435442725,-1630.87994612,0.000199,2]
[403634612,1769435442734,-6402.60641609,0.000199,2]
[403634614,1769435442744,-676.42282539,0.000199,2]
[403634617,1769435442754,-1000.0,0.000199,5]
[403634620,1769435442763,-1217.5610857,0.000199,2]
[403634622,1769435442772,-2164.55304125,0.000199,2]
[403634624,1769435442781,-2548.24991582,0.000199,2]
[403634626,1769435442790,-582.64689169,0.000199,2]
[403634628,1769435442799,-1048.76440504,0.000199,2]
[403634630,1769435442808,-3382.11412696,0.000199,2]
[403634632,1769435442819,-628.92823277,0.000199,2]
[403634634,1769435442829,-1132.07081899,0.000199,2]
[403634636,1769435442838,-2012.57034486,0.000199,2]
[403634638,1769435442847,-1864.4700534,0.000199,2]